bitfinex/quotes_SOLUSD_20260311
["timestamp","ask_amount","ask_price","bid_price","bid_amount"]
[1773246097505,3.75058582,85.777,85.741,3.82739441]
[1773246098604,3.75058582,85.759,85.72,7.61486001]
[1773246098802,42.26123856,85.776,85.741,3.82739441]
[1773246098803,3.75058582,85.77,85.741,3.82739441]
[1773246098997,11.65827271,85.776,85.741,3.82739441]
[1773246099202,3.75058582,85.775,85.741,3.82739441]
[1773246099605,11.65780155,85.78,85.751,3.82739441]
[1773246100235,7.61486001,85.79,85.751,3.82739441]
[1773246100533,7.61486001,85.79,85.721,3.69383402]
[1773246100534,11.65650607,85.789,85.761,3.79876301]
[1773246100734,7.61486001,85.8,85.763,3.79876301]
[1773246100909,11.65514749,85.799,85.771,3.79876301]
[1773246101724,3.74722906,85.798,85.763,3.79876301]
[1773246103034,11.65541918,85.797,85.765,3.79876301]
[1773246103235,11.65541918,85.797,85.77,7.61486001]
[1773246103415,11.65541918,85.797,85.771,3.79876301]
[1773246105232,11.65541918,85.797,85.771,15.4577111]
[1773246105541,7.61486001,85.81,85.771,15.4577111]
[1773246105542,3.74722906,85.805,85.772,3.79876301]
[1773246105831,3.74722906,85.805,85.781,3.79876301]
[1773246105832,3.74722906,85.804,85.781,3.79876301]
[1773246106031,3.74722906,85.804,85.772,3.79876301]
[1773246107820,11.65460415,85.803,85.773,11.65868047]
[1773246108026,11.65460415,85.803,85.774,3.79876301]
[1773246108544,3.74722906,85.817,85.781,3.79876301]
[1773246108731,11.65256706,85.818,85.773,40.80538164]
[1773246108732,3.74722906,85.809,85.773,11.65868047]
[1773246108920,3.74722906,85.807,85.77,3.79876301]
[1773246109124,3.74722906,85.807,85.772,3.79876301]
[1773246109541,3.74722906,85.799,85.772,3.79876301]
[1773246110038,11.65528333,85.798,85.772,3.79876301]
[1773246110457,3.71345916,85.811,85.774,3.85949096]
[1773246110625,11.65256706,85.818,85.781,3.85949096]
[1773246110820,11.65178825,85.824,85.791,3.85949096]
[1773246112238,11.65178825,85.824,85.793,3.85949096]
[1773246112921,3.71345916,85.823,85.793,3.85949096]
[1773246114641,11.65202395,85.822,85.795,3.85949096]
[1773246115738,3.71345916,85.821,85.795,3.85949096]
[1773246116640,3.71345916,85.821,85.797,3.85949096]
[1773246117244,3.04249501,85.84,85.796,11.65555503]
[1773246117245,11.65053156,85.833,85.801,3.85949096]
[1773246117431,15.36399072,85.833,85.801,3.85949096]
[1773246117625,3.71345916,85.832,85.801,3.85949096]
[1773246118130,3.04249501,85.83,85.801,3.85949096]
[1773246118331,40.77685826,85.833,85.801,3.85949096]
[1773246118332,3.71345916,85.829,85.801,3.85949096]
[1773246119955,15.3645753,85.829,85.803,3.85949096]
[1773246120252,3.71345916,85.828,85.792,3.85949096]
[1773246120449,11.65061793,85.833,85.801,3.85949096]
[1773246120626,3.71345916,85.833,85.808,3.85949096]
[1773246121245,11.64850465,85.848,85.821,3.85949096]
[1773246121447,11.6470314,85.859,85.831,3.85949096]
[1773246121642,11.64646005,85.863,85.841,3.85949096]
[1773246122239,3.71345916,85.862,85.832,3.85949096]
[1773246122828,11.64646005,85.863,85.832,3.85949096]
[1773246123441,29.11350785,85.871,85.833,3.85949096]
[1773246123634,29.11350785,85.871,85.841,3.85949096]
[1773246123834,29.11350785,85.871,85.831,40.77780754]
[1773246123835,3.71345916,85.869,85.832,3.85949096]
[1773246124542,3.71345916,85.868,85.84,3.04249501]
[1773246124742,3.71345916,85.868,85.84,6.90198597]
[1773246124945,3.71345916,85.868,85.84,3.85949096]
[1773246125145,3.71345916,85.859,85.83,11.65081047]
[1773246125357,3.71345916,85.849,85.811,11.6534264]
[1773246125528,3.71345916,85.839,85.8,3.04249501]
[1773246125733,3.71345916,85.839,85.799,11.65514749]
[1773246126039,3.71345916,85.839,85.8,3.04249501]
[1773246126242,3.71345916,85.839,85.801,3.85949096]
[1773246126634,3.04249501,85.84,85.803,3.85949096]
[1773246126635,3.71345916,85.837,85.803,3.85949096]
[1773246127749,3.71345916,85.851,85.82,3.04249501]
[1773246127931,11.64822364,85.85,85.831,3.85949096]
[1773246129071,3.71345916,85.858,85.831,3.85949096]
[1773246129439,11.64700264,85.859,85.831,3.85949096]
[1773246129633,11.64700264,85.859,85.833,3.85949096]
[1773246129834,11.64700264,85.859,85.8,3.04249501]
[1773246129835,3.71345916,85.858,85.82,3.04249501]
[1773246130046,40.76450924,85.859,85.815,3.85949096]
[1773246130047,3.71345916,85.849,85.815,3.85949096]
[1773246130637,3.71345916,85.839,85.8,3.04249501]
[1773246131028,3.71345916,85.837,85.8,3.04249501]
[1773246131249,3.71345916,85.837,85.773,2.98]
[1773246131445,3.71345916,85.829,85.79,3.04249501]
[1773246131648,3.71345916,85.819,85.773,14.63858555]
[1773246131957,3.71345916,85.819,85.78,3.04249501]
[1773246132131,3.71345916,85.819,85.773,14.63858555]
[1773246132132,3.71345916,85.829,85.8,3.04249501]
[1773246132849,3.71345916,85.829,85.794,2.39670783]
[1773246133063,3.71345916,85.827,85.794,2.39670783]
[1773246135160,3.04249501,85.83,85.79,3.04249501]
[1773246135161,3.71345916,85.825,85.79,3.04249501]
[1773246135348,3.71345916,85.825,85.791,2.39686]
[1773246136051,3.71345916,85.825,85.8,3.04249501]
[1773246136234,3.71345916,85.825,85.791,2.39686]
[1773246138055,3.71345916,85.823,85.791,2.39686]
[1773246138844,4.01669326,85.819,85.78,3.04249501]
[1773246139053,4.01669326,85.819,85.77,14.70151226]
[1773246139446,4.01669326,85.809,85.77,14.70151226]
[1773246139858,4.01669326,85.807,85.77,14.70151226]
[1773246140957,4.01669326,85.807,85.78,3.04249501]
[1773246141157,4.01669326,85.82,85.79,3.04249501]
[1773246141365,29.1271732,85.831,85.8,3.04249501]
[1773246142255,4.01669326,85.829,85.79,3.04249501]
[1773246143055,3.04249501,85.82,85.78,3.04249501]
[1773246143237,4.01669326,85.819,85.78,3.04249501]
[1773246145144,4.01669326,85.817,85.79,3.04249501]
[1773246145543,4.01669326,85.817,85.79,7.60721359]
[1773246147059,4.01669326,85.815,85.781,11.65759317]
[1773246147444,4.01669326,85.815,85.79,7.60721359]
[1773246148662,4.01669326,85.815,85.78,7.60721359]
[1773246148846,4.01669326,85.799,85.76,7.60721359]
[1773246149047,40.79349167,85.798,85.76,7.60721359]
[1773246149247,4.01669326,85.797,85.76,7.60721359]
[1773246149759,4.01669326,85.797,85.761,11.66031179]
[1773246150667,4.01669326,85.797,85.77,7.60721359]
[1773246151266,7.60721359,85.81,85.77,19.26619106]
[1773246151267,4.01669326,85.795,85.77,19.26619106]
[1773246151658,4.01669326,85.795,85.77,19.26949756]
[1773246152147,4.01669326,85.795,85.77,11.65897747]
[1773246152664,4.01669326,85.795,85.77,19.26949756]
[1773246153664,4.01669326,85.793,85.761,11.66031179]
[1773246155363,4.01669326,85.793,85.76,7.61052009]
[1773246155567,4.01669326,85.787,85.75,7.61052009]
[1773246155754,4.01669326,85.787,85.75,19.27220107]
[1773246156751,11.65691371,85.786,85.75,19.27220107]
[1773246156952,4.01669326,85.785,85.75,19.27220107]
[1773246157656,4.01669326,85.793,85.76,7.61052009]
[1773246159571,4.01669326,85.791,85.76,7.61052009]
[1773246159772,4.01669326,85.789,85.758,11.66059712]
[1773246160371,4.01669326,85.789,85.76,7.61052009]
[1773246160587,46.60908105,85.821,85.758,11.66059712]
[1773246160588,11.65270284,85.817,85.781,3.77985759]
[1773246160881,11.65270284,85.817,85.789,3.77985759]
[1773246161080,3.93388693,85.809,85.77,7.61052009]
[1773246161582,3.93388693,85.807,85.78,19.26824733]
[1773246161871,3.93388693,85.807,85.767,29.14865074]
[1773246161872,3.93388693,85.807,85.776,11.6581932]
[1773246162064,3.93388693,85.807,85.772,11.65876584]
[1773246162261,3.93388693,85.807,85.78,7.61052009]
[1773246162579,11.65392504,85.808,85.79,7.61052009]
[1773246162779,11.65341589,85.812,85.79,7.61052009]
[1773246164290,15.58682204,85.816,85.79,7.61052009]
[1773246164586,0.74599999,85.819,85.79,7.61052009]
[1773246164587,0.74599999,85.819,85.791,11.65623433]
[1773246164770,11.65256706,85.818,85.791,11.65623433]
[1773246165570,3.93388693,85.832,85.81,3.041624]
[1773246165874,3.93388693,85.832,85.801,0.22443804]
[1773246166568,11.65080215,85.831,85.81,3.041624]
[1773246166885,11.65080215,85.831,85.803,0.22443804]
[1773246167184,15.58468908,85.831,85.803,0.22443804]
[1773246168290,1.45604491,85.849,85.811,0.223623]
[1773246168586,2.62,86.007,85.802,11.65473998]
[1773246168587,3.93388693,85.871,85.842,0.223623]
[1773246168799,11.64632442,85.864,85.84,3.041624]
[1773246169267,3.93388693,85.871,85.84,3.041624]
[1773246169472,3.93388693,85.871,85.816,3.69383402]
[1773246169473,7.10720178,85.865,85.85,3.041624]
[1773246170583,11.64632442,85.864,85.85,3.041624]
[1773246170784,7.10720178,85.865,85.85,3.041624]
[1773246171084,11.64632442,85.864,85.85,3.041624]
[1773246171681,7.10720178,85.865,85.85,3.041624]
[1773246171864,3.93388693,85.881,85.85,14.68983583]
[1773246172067,40.75454121,85.88,85.835,3.69383402]
[1773246172380,4.00988667,85.879,85.84,3.041624]
[1773246172680,11.64442581,85.878,85.85,3.041624]
[1773246172874,4.00988667,85.877,85.85,3.041624]
[1773246173295,4.00988667,85.877,85.825,3.69383402]
[1773246173468,4.00988667,85.877,85.85,3.041624]
[1773246174869,4.00988667,85.875,85.85,3.041624]
[1773246176475,11.644697,85.876,85.86,3.041624]
[1773246176678,4.00988667,85.888,85.86,3.041624]
[1773246176875,4.00988667,85.888,85.87,3.041624]
[1773246177083,4.00988667,85.888,85.832,2.98]
[1773246177084,11.64347674,85.885,85.86,3.041624]
[1773246177281,15.65336341,85.885,85.86,3.041624]
[1773246177482,15.65336341,85.885,85.87,3.041624]
[1773246177679,11.6432056,85.887,85.87,7.59272774]
[1773246177987,4.00988667,85.905,85.88,7.59272774]
[1773246178186,4.00988667,85.905,85.853,40.76733793]
[1773246178187,0.1,85.91,85.89,7.59272774]
[1773246178370,11.64022395,85.909,85.89,7.59272774]
[1773246178566,11.64022395,85.909,85.9,7.59272774]
[1773246179185,11.63846483,85.922,85.9,7.59272774]
[1773246179390,4.00988667,85.933,85.91,7.59272774]
[1773246179581,11.63575434,85.942,85.92,7.59272774]
[1773246179779,4.00988667,85.941,85.89,3.69383402]
[1773246179999,3.18,85.959,85.92,7.59272774]
[1773246180000,15.64428726,85.952,85.92,7.59272774]
[1773246180177,4.00988667,85.951,85.92,7.59272774]
[1773246180871,11.63368476,85.958,85.94,7.59272774]
[1773246181072,11.63368476,85.958,85.901,3.69383402]
[1773246181073,11.63211774,85.969,85.905,3.69383402]
[1773246181377,4.00988667,85.974,85.96,7.59272774]
[1773246181378,15.64135108,85.974,85.96,7.59272774]
[1773246181688,4.00988667,85.973,85.94,7.59272774]
[1773246181890,4.00988667,85.973,85.95,7.59272774]
[1773246182076,4.00988667,85.973,85.96,7.59272774]
[1773246182271,4.00988667,85.973,85.906,2.98]
[1773246182587,4.00988667,85.973,85.95,7.59272774]
[1773246183186,4.00988667,85.973,85.96,7.59272774]
[1773246183498,0.1,85.99,85.96,7.59272774]
[1773246183710,11.62470948,86.024,85.98,7.59272774]
[1773246183877,4.00988667,86.023,85.963,3.69383402]
[1773246184075,4.00988667,86.023,85.99,7.59272774]
[1773246184297,6.07078154,86.039,86.01,7.59272774]
[1773246184592,46.45983704,86.096,85.98,2.96]
[1773246184593,1.45188454,86.095,86.033,3.69383402]
[1773246184780,46.4408083,86.132,86.033,3.69383402]
[1773246184781,46.41895215,86.172,86.071,3.91199435]
[1773246184974,46.41895215,86.172,86.094,3.91199435]
[1773246184975,1.45058719,86.172,86.094,3.91199435]
[1773246185176,40.61738423,86.17,86.13,7.59272774]
[1773246185376,7.59272774,86.15,86.101,3.91199435]
[1773246185695,7.59272774,86.13,86.09,7.59272774]
[1773246185897,7.59272774,86.12,86.08,7.59272774]
[1773246186080,7.59272774,86.12,86.061,3.69383402]
[1773246186081,3.16,86.131,86.059,3.69383402]
[1773246186395,7.59272774,86.11,86.06,3.91199435]
[1773246186695,3.14,86.119,86.09,7.59272774]
[1773246186998,3.14,86.119,86.06,3.91199435]
[1773246186999,3.64172352,86.118,86.06,3.91199435]
[1773246187193,11.6133228,86.108,86.071,11.61831511]
[1773246187495,3.64172352,86.099,86.047,3.91199435]
[1773246187694,3.64172352,86.089,86.04,7.59272774]
[1773246187993,3.64172352,86.088,86.035,3.91199435]
[1773246188184,3.64172352,86.069,86.04,7.59272774]
[1773246188380,3.64172352,86.079,86.04,7.59272774]
[1773246188794,3.64172352,86.079,86.05,7.59272774]
[1773246189119,3.64172352,86.059,86.02,7.59272774]
[1773246189293,7.59272774,86.1,86.005,3.91199435]
[1773246189294,3.64172352,86.049,86.01,7.59272774]
[1773246189791,3.64172352,86.049,86.02,7.59272774]
[1773246189991,11.62007018,86.058,86.021,3.91199435]
[1773246190183,3.64172352,86.049,86.01,7.59272774]
[1773246190386,7.59272774,86.05,85.99,2.92]
[1773246190387,11.23445126,86.03,85.995,3.91199435]
[1773246190580,3.64172352,86.029,85.995,3.91199435]
[1773246190785,3.64172352,86.019,85.98,7.59272774]
[1773246191080,3.64172352,86.019,85.961,11.63318248]
[1773246191081,3.64172352,86.019,85.972,3.91199435]
[1773246191289,3.64172352,86.008,85.972,3.91199435]
[1773246191488,7.59272774,86.0,85.961,3.91199435]
[1773246191697,3.64172352,85.989,85.952,11.63440059]
[1773246191993,7.59272774,85.98,85.94,7.59272774]
[1773246192179,1.45335317,86.008,85.94,7.59272774]
[1773246192180,3.64172352,85.979,85.94,7.59272774]
[1773246192377,3.64172352,85.979,85.93,11.63733745]
[1773246192378,3.64172352,85.999,85.96,7.59272774]
[1773246192586,11.62669023,86.009,85.97,7.59272774]
[1773246192587,15.26841375,86.009,85.97,7.59272774]
[1773246192790,44.33513932,86.009,85.97,7.59272774]
[1773246193297,3.64172352,85.999,85.96,7.59272774]
[1773246193696,40.6934158,86.009,85.97,7.59272774]
[1773246194279,133.70693764,86.009,85.94,7.59272774]
[1773246194485,3.96094051,85.989,85.94,7.59272774]
[1773246194779,3.96094051,85.979,85.94,7.59272774]
[1773246194976,7.59272774,85.97,85.93,7.59272774]
[1773246195174,3.96094051,85.969,85.93,7.59272774]
[1773246195379,3.96094051,85.959,85.916,2.94]
[1773246195595,3.96094051,85.959,85.914,11.63942321]
[1773246195801,3.96094051,85.949,85.91,7.59272774]
[1773246196177,3.96094051,85.949,85.904,11.64090147]
[1773246196379,3.96094051,85.939,85.89,0.10257846]
[1773246196582,3.96094051,85.929,85.89,19.23539415]
[1773246196795,3.96094051,85.929,85.9,7.59272774]
[1773246197082,3.96094051,85.955,85.92,7.59272774]
[1773246197279,3.96094051,85.955,85.913,0.10460859]
[1773246197280,3.96094051,85.955,85.93,7.59272774]
[1773246197482,3.96094051,85.955,85.927,11.63775432]
[1773246197483,7.59272774,85.97,85.922,29.09584579]
[1773246197683,7.59272774,85.97,85.9,46.56545226]
[1773246197684,11.63138397,85.975,85.95,7.59272774]
[1773246197884,11.62858305,85.995,85.96,7.59272774]
[1773246198100,4.0142482,86.001,85.97,7.59272774]
[1773246198492,15.64203064,86.001,85.97,7.59272774]
[1773246198802,11.60697594,85.98,85.94,7.59272774]
[1773246199004,7.59272774,85.99,85.95,7.59272774]
[1773246199191,4.0142482,85.989,85.95,7.59272774]
[1773246199500,4.0142482,85.987,85.95,7.59272774]
[1773246199709,93.0114582,86.011,85.926,3.69383402]
[1773246199710,11.62763656,86.002,85.97,7.59272774]
[1773246199907,7.59272774,86.0,85.96,7.59272774]
[1773246200089,11.62763656,86.002,85.97,7.59272774]
[1773246200291,7.59272774,86.0,85.96,7.59272774]
[1773246200591,46.48664657,86.047,85.951,11.63453595]
[1773246200592,11.62452775,86.025,85.99,7.59272774]
[1773246200799,11.62452775,86.025,85.951,44.41470986]
[1773246200800,7.59272774,86.02,85.954,3.69383402]
[1773246200992,1.45316732,86.019,85.98,7.59272774]
[1773246201297,7.59272774,86.02,85.98,7.59272774]
[1773246201501,7.59272774,86.01,85.97,7.59272774]
[1773246201800,4.0142482,85.999,85.96,7.59272774]
[1773246201998,4.0142482,85.999,85.95,7.59272774]
[1773246202199,4.0142482,85.989,85.95,7.59272774]
[1773246202397,4.0142482,85.979,85.93,7.59272774]
[1773246202603,4.0142482,85.969,85.93,7.59272774]
[1773246203311,11.63223525,85.968,85.931,11.63724383]
[1773246203616,11.63223525,85.968,85.93,7.59272774]
[1773246203916,7.59272774,85.96,85.92,19.23138087]
[1773246204093,7.59272774,85.96,85.912,11.63971695]
[1773246204094,4.0142482,85.959,85.912,11.63971695]
[1773246204292,7.59272774,85.94,85.906,11.64055288]
[1773246204590,87.24176437,85.968,85.91,7.59272774]
[1773246204591,4.0142482,85.939,85.91,7.59272774]
[1773246204789,4.0142482,85.939,85.901,11.64130801]
[1773246205009,4.0142482,85.939,85.89,7.59272774]
[1773246205298,4.0142482,85.939,85.838,46.59926952]
[1773246205299,11.64022395,85.909,85.843,14.60917349]
[1773246205628,4.0142482,85.899,85.85,7.59272774]
[1773246206122,7.59272774,85.89,85.85,7.59272774]
[1773246206640,4.0142482,85.899,85.86,7.59272774]
[1773246206788,4.0142482,85.899,85.843,40.77210721]
[1773246206789,7.59272774,85.89,85.85,7.59272774]
[1773246207195,11.60697594,85.89,85.85,7.59272774]
[1773246207528,11.64293448,85.889,85.851,11.64808796]
[1773246207824,4.0142482,85.904,85.851,40.76830787]
[1773246208032,4.0142482,85.899,85.851,11.64808796]
[1773246208334,7.59272774,85.89,85.851,11.64808796]
[1773246208534,11.60697594,85.89,85.85,7.59272774]
[1773246208728,4.0142482,85.905,85.86,7.59272774]
[1773246209027,4.0142482,85.905,85.87,7.59272774]
[1773246209404,11.64090147,85.904,85.87,7.59272774]
[1773246209604,4.0142482,85.905,85.87,19.23822854]
[1773246210025,7.59272774,85.9,85.864,11.6462946]
[1773246210421,4.0142482,85.899,85.86,11.64686699]
[1773246210724,4.0142482,85.899,85.87,7.59272774]
[1773246210929,4.0142482,85.899,85.86,19.23959473]
[1773246211710,11.64171459,85.898,85.86,19.24005111]
[1773246212221,40.74600106,85.898,85.855,0.02017429]
[1773246212403,4.0142482,85.897,85.856,11.64740961]
[1773246212607,4.0142482,85.897,85.85,7.59318412]
[1773246212608,4.0142482,85.889,85.85,7.59318412]
[1773246212812,4.0142482,85.879,85.839,29.12429082]
[1773246213016,4.0142482,85.879,85.84,7.59318412]
[1773246213415,4.0142482,85.879,85.85,7.59318412]
[1773246213611,11.64442581,85.878,85.841,11.6494449]
[1773246214001,4.0142482,85.879,85.85,7.59318412]
[1773246215434,4.0142482,85.879,85.841,40.77305715]
[1773246215435,11.64442581,85.878,85.841,40.77305715]
[1773246215818,11.64442581,85.878,85.841,11.6494449]
[1773246216120,44.76973854,85.878,85.84,7.59318412]
[1773246216329,4.0142482,85.869,85.84,7.59318412]
[1773246218024,3.16,85.89,85.83,7.59318412]
[1773246218025,4.0142482,85.859,85.83,7.59318412]
[1773246218206,3.16,85.89,85.83,7.59318412]
[1773246218207,1.45536681,85.889,85.85,7.59318412]
[1773246218408,7.59318412,85.88,85.841,3.77007865]
[1773246218809,7.59318412,85.88,85.84,7.59318412]
[1773246219026,1.45541764,85.886,85.831,3.77007865]
[1773246219027,11.64076596,85.905,85.86,7.59318412]
[1773246219206,7.59318412,85.93,85.88,7.59318412]
[1773246219402,7.59318412,85.92,85.88,7.59318412]
[1773246219619,1.45485864,85.919,85.88,7.59318412]
[1773246219824,1.45485864,85.919,85.871,3.77007865]
[1773246219825,40.74078384,85.909,85.871,3.77007865]
[1773246220012,11.64022395,85.909,85.87,7.59318412]
[1773246220323,11.64022395,85.909,85.865,11.64618177]
[1773246220324,3.93877701,85.908,85.865,11.64618177]
[1773246220524,1.45506186,85.907,85.862,11.6465957]
[1773246220827,40.74078384,85.909,85.87,7.59318412]
[1773246220828,3.93877701,85.906,85.87,7.59318412]
[1773246221026,3.93877701,85.899,85.86,7.59318412]
[1773246221231,3.93877701,85.899,85.861,11.64673134]
[1773246222324,3.16,85.918,85.842,29.1232556]
[1773246222325,3.93877701,85.889,85.842,29.1232556]
[1773246222707,3.93877701,85.889,85.85,7.59318412]
[1773246224233,3.93877701,85.889,85.86,7.59318412]
[1773246224607,11.64307004,85.888,85.85,7.59318412]
[1773246224810,3.93877701,85.887,85.85,7.59318412]
[1773246226925,3.93877701,85.885,85.851,11.64808796]
[1773246227333,3.93877701,85.885,85.85,7.59318412]
[1773246227540,11.64334117,85.886,85.83,7.59318412]
[1773246227541,3.93877701,85.879,85.83,7.59318412]
[1773246227718,3.93877701,85.879,85.84,7.59318412]
[1773246229039,3.93877701,85.877,85.841,11.6494449]
[1773246230427,7.59318412,85.87,85.841,11.6494449]
[1773246230627,3.93877701,85.877,85.841,11.6494449]
[1773246231646,104.76606407,85.906,85.817,3.67577625]
[1773246231647,3.80881008,85.859,85.817,3.67577625]
[1773246231821,3.80881008,85.849,85.817,3.67577625]
[1773246232021,3.80881008,85.849,85.821,11.65215972]
[1773246232220,11.4019942,85.84,85.808,3.67577625]
[1773246232735,11.4019942,85.84,85.814,11.65310532]
[1773246232936,11.4019942,85.84,85.81,11.65358558]
[1773246233344,3.80881008,85.84,85.81,7.59318412]
[1773246233519,3.80881008,85.84,85.82,11.85222571]
[1773246233721,3.80881008,85.84,85.82,0.2]
[1773246233722,11.64971632,85.839,85.82,0.2]
[1773246234652,11.64971632,85.839,85.82,1e-08]
[1773246234849,3.80881008,85.829,85.792,11.65609847]
[1773246235154,3.80881008,85.819,85.792,11.65609847]
[1773246235743,11.65256706,85.818,85.782,44.4768767]
[1773246236043,40.78398471,85.818,85.782,15.33323352]
[1773246236825,3.80881008,85.817,85.782,11.65745727]
[1773246237027,40.78398471,85.818,85.776,11.65818118]
[1773246237028,11.4019942,85.81,85.776,11.65818118]
[1773246237324,3.80881008,85.81,85.78,7.59318412]
[1773246237743,11.65378922,85.809,85.78,19.25083163]
[1773246237946,3.80881008,85.81,85.78,19.25083163]
[1773246238147,11.65378922,85.809,85.78,19.25083163]
[1773246238448,6.98881008,85.826,85.781,3.67577625]
[1773246238644,11.65161666,85.825,85.781,3.67577625]
[1773246238950,7.59318412,85.82,85.781,3.67577625]
[1773246240247,3.80881008,85.839,85.801,3.67577625]
[1773246240546,3.80881008,85.839,85.81,7.59318412]
[1773246240942,3.80881008,85.849,85.81,11.26896037]
[1773246241248,15.45735951,85.848,85.811,3.67577625]
[1773246241642,11.64713829,85.858,85.821,3.67577625]
[1773246242039,11.4019942,85.84,85.79,7.59318412]
[1773246242232,1.45590924,85.857,85.81,7.59318412]
[1773246242233,3.80881008,85.837,85.81,7.59318412]
[1773246242434,3.80881008,85.849,85.811,3.67577625]
[1773246242635,10.53641163,85.872,85.791,192.32786653]
[1773246242636,11.64713829,85.858,85.83,7.59318412]
[1773246243260,7.59318412,85.85,85.82,3.67577625]
[1773246243460,3.80881008,85.856,85.82,11.26896037]
[1773246244240,3.80881008,85.854,85.821,11.65215972]
[1773246244856,11.6469282,85.86,85.83,7.59318412]
[1773246245044,19.24011232,85.86,85.822,3.67577625]
[1773246245248,3.80881008,85.859,85.822,3.67577625]
[1773246246358,3.80881008,85.857,85.821,11.65215972]
[1773246246659,3.80881008,85.839,85.801,11.65487581]
[1773246246842,3.80881008,85.839,85.802,3.67577625]
[1773246247043,3.80881008,85.839,85.81,7.59318412]
[1773246247448,3.80881008,85.839,85.802,3.67577625]
[1773246247843,3.80881008,85.839,85.781,3.69383402]
[1773246247844,3.80881008,85.819,85.781,11.65759317]
[1773246248053,3.69383402,85.857,85.781,11.65759317]
[1773246248054,3.80881008,85.809,85.781,11.65759317]
[1773246248256,3.80881008,85.809,85.771,11.65895232]
[1773246248448,3.80881008,85.807,85.772,3.67577625]
[1773246249655,40.78873764,85.808,85.764,11.65985332]
[1773246249656,3.80881008,85.799,85.764,11.65985332]
[1773246250048,3.80881008,85.799,85.76,0.2]
[1773246250049,7.59318412,85.79,85.76,0.2]
[1773246250258,3.80881008,85.789,85.761,11.66031179]
[1773246250559,40.79824683,85.788,85.76,0.2]
[1773246250759,3.80881008,85.789,85.761,11.66031179]
[1773246250957,15.46541158,85.789,85.761,11.66031179]
[1773246251258,15.46541158,85.789,85.76,7.79318412]
[1773246251259,15.46541158,85.789,85.76,0.2]
[1773246251562,15.46541158,85.789,85.76,19.45352049]
[1773246251563,11.65664195,85.788,85.76,19.45352049]
[1773246251761,3.80881008,85.789,85.76,19.45352049]
[1773246251948,11.65394782,85.808,85.771,3.67577625]
[1773246252149,11.65283863,85.816,85.78,11.26896037]
[1773246252348,11.65283863,85.816,85.781,11.65759317]
[1773246252547,3.80881008,85.827,85.791,3.67577625]
[1773246252853,7.59318412,85.86,85.82,7.59318412]
[1773246253042,46.56151042,85.908,85.83,7.59318412]
[1773246253043,11.64613432,85.866,85.83,7.59318412]
[1773246253239,11.64613432,85.866,85.821,3.67577625]
[1773246253240,7.59318412,85.86,85.821,3.67577625]
[1773246253438,18.85288847,85.866,85.821,3.67577625]
[1773246254258,18.85288847,85.866,85.83,7.59318412]
[1773246254466,18.85288847,85.866,85.833,3.67577625]
[1773246254662,18.85288847,85.866,85.832,11.65066641]
[1773246254863,3.80881008,85.865,85.832,11.65066641]
[1773246255643,7.20675415,85.866,85.841,3.67577625]
[1773246255849,18.85283468,85.866,85.841,3.67577625]
[1773246256050,3.80881008,85.865,85.83,7.59318412]
[1773246256363,3.80881008,85.865,85.84,7.59318412]
[1773246256562,3.80881008,85.863,85.834,11.65035775]
[1773246257367,7.20675415,85.866,85.84,7.59318412]
[1773246257572,7.20675415,85.866,85.834,11.65035775]
[1773246257573,3.80881008,85.865,85.834,11.65035775]
[1773246257753,3.80881008,85.865,85.83,19.2441202]
[1773246258274,18.85291572,85.866,85.85,7.59318412]
[1773246258275,7.20675415,85.866,85.85,7.59318412]
[1773246258574,7.20675415,85.866,85.846,11.64876479]
[1773246258775,3.80881008,85.865,85.846,11.64876479]
[1773246260169,4.45511092,85.866,85.851,3.74384358]
[1773246260566,4.45511092,85.866,85.841,11.6494449]
[1773246260760,3.65815893,85.864,85.841,11.6494449]
[1773246262078,3.65815893,85.862,85.832,11.65063779]
[1773246262265,3.65815893,85.859,85.823,11.65188802]
[1773246262861,7.59318412,85.84,85.804,11.65444484]
[1773246263061,3.65815893,85.839,85.81,7.59318412]
[1773246264165,3.65815893,85.837,85.8,7.59318412]
[1773246265968,11.64743825,85.856,85.821,3.74384358]
[1773246266172,29.11852404,85.856,85.821,11.65215972]
[1773246266371,29.11852404,85.856,85.791,3.69383402]
[1773246266372,7.59318412,85.83,85.793,3.74384358]
[1773246266570,7.59318412,85.83,85.783,3.74384358]
[1773246266877,7.59318412,85.82,85.78,2.96]
[1773246267364,7.59318412,85.82,85.775,11.65840862]
[1773246267561,7.59318412,85.81,85.774,3.74384358]
[1773246267766,7.59318412,85.8,85.762,3.74384358]
[1773246267967,3.65815893,85.809,85.762,3.74384358]
[1773246268187,3.65815893,85.809,85.78,7.59318412]
[1773246268774,11.65392504,85.808,85.78,7.59318412]
[1773246269292,7.59318412,85.82,85.778,11.65797916]
[1773246269293,11.65274452,85.817,85.791,3.74384358]
[1773246269473,11.65161666,85.825,85.8,11.3370277]
[1773246269673,3.65815893,85.824,85.79,7.59318412]
[1773246270795,3.65815893,85.824,85.791,11.65623433]
[1773246271094,11.65188818,85.823,85.792,3.74384358]
[1773246272185,3.65815893,85.824,85.8,7.59318412]
[1773246272571,3.65815893,85.822,85.79,7.59318412]
[1773246272881,3.65815893,85.82,85.791,11.65623433]